bitfinex/quotes_BTCUSD_20250601
["timestamp","ask_amount","ask_price","bid_price","bid_amount"]
[1748748919018,0.05463637,104220.0,104210.0,1.09939304]
[1748748919639,0.05463637,104220.0,104210.0,1.07243341]
[1748748919837,0.06423118,104220.0,104210.0,0.8029549]
[1748748920048,0.06423118,104220.0,104210.0,1.07243341]
[1748748920253,0.05463637,104220.0,104210.0,1.0993949]
[1748748920421,0.06423118,104220.0,104210.0,1.0993949]
[1748748920832,0.05463637,104220.0,104210.0,1.0993949]
[1748748920997,0.06423118,104220.0,104210.0,1.0993949]
[1748748921565,0.06423118,104220.0,104210.0,1.09939545]
[1748748921765,0.06423118,104220.0,104210.0,1.09939573]
[1748748922329,0.06423118,104220.0,104210.0,1.09939888]
[1748748922535,0.06423118,104220.0,104210.0,1.09939957]
[1748748922915,0.06423118,104220.0,104210.0,1.07243341]
[1748748923121,0.06423118,104220.0,104210.0,1.09939957]
[1748748923580,0.06423118,104220.0,104210.0,1.07243341]
[1748748923759,0.06423118,104220.0,104210.0,1.09939957]
[1748748924079,0.06423118,104220.0,104210.0,1.09041085]
[1748748924322,0.06123256,104220.0,104210.0,1.09940258]
[1748748924522,0.06123256,104220.0,104210.0,1.09940861]
[1748748924764,0.06123256,104220.0,104210.0,1.09940872]
[1748748924947,0.05163775,104220.0,104210.0,1.09041695]
[1748748925155,0.05163775,104220.0,104210.0,1.07243341]
[1748748927079,0.06123246,104220.0,104210.0,1.09041695]
[1748748927339,0.06423107,104220.0,104210.0,1.07243341]
[1748748927582,0.06063246,104220.0,104210.0,1.07243341]
[1748748927789,0.06063246,104220.0,104210.0,1.09041695]
[1748748927995,0.06063246,104220.0,104210.0,1.07243341]
[1748748928214,0.06063246,104220.0,104210.0,1.08142518]
[1748748928420,0.06063246,104220.0,104210.0,1.07243341]
[1748748928624,0.06363106,104220.0,104210.0,1.07243341]
[1748748928846,0.05403635,104220.0,104210.0,1.09041695]
[1748748929060,0.05403635,104220.0,104210.0,1.07243341]
[1748748929898,0.05103775,104220.0,104210.0,1.07243341]
[1748748930641,0.05103775,104220.0,104210.0,1.08142518]
[1748748930843,0.05103775,104220.0,104210.0,1.07243341]
[1748748931046,0.03508897,104220.0,104210.0,1.09940872]
[1748748931285,0.01918897,104220.0,104210.0,1.07243341]
[1748748932122,0.01918897,104220.0,104210.0,1.08142526]
[1748748932334,0.02218757,104220.0,104210.0,1.07243341]
[1748748932673,0.01918897,104220.0,104210.0,1.07243341]
[1748748933137,0.03178238,104220.0,104210.0,1.07243341]
[1748748933344,0.03178238,104220.0,104210.0,1.09041745]
[1748748933760,0.03178238,104220.0,104210.0,1.07243341]
[1748748933969,0.03178238,104220.0,104210.0,1.09041745]
[1748748934184,0.06566273,104220.0,104210.0,1.08198895]
[1748748934419,0.07520317,104220.0,104210.0,1.09997411]
[1748748934656,0.05091772,104220.0,104210.0,1.06403591]
[1748748934866,0.05091772,104220.0,104210.0,1.08202107]
[1748748935053,0.05091772,104220.0,104210.0,1.06403591]
[1748748935341,0.08311772,104220.0,104210.0,1.07302849]
[1748748935589,0.27501946,104220.0,104210.0,0.74784196]
[1748748935807,0.26242651,104220.0,104210.0,1.04480492]
[1748748936531,0.26242651,104220.0,104210.0,1.06279045]
[1748748936745,0.26242651,104220.0,104210.0,1.04480492]
[1748748936970,0.26242651,104220.0,104210.0,1.07178321]
[1748748937178,0.26242651,104220.0,104210.0,1.05379768]
[1748748937387,0.26242651,104220.0,104210.0,1.06279045]
[1748748937582,0.26242651,104220.0,104210.0,1.04480492]
[1748748937780,0.26242651,104220.0,104210.0,1.05440037]
[1748748938060,0.26242651,104220.0,104210.0,1.04480492]
[1748748938901,0.26242651,104220.0,104210.0,1.05440037]
[1748748939892,0.26242651,104220.0,104210.0,1.07238607]
[1748748940101,0.08011976,104220.0,104210.0,1.07298858]
[1748748940312,0.08311836,104220.0,104210.0,1.06399573]
[1748748940868,0.08311836,104220.0,104210.0,1.07298858]
[1748748941073,0.08311836,104220.0,104210.0,1.06399573]
[1748748941739,0.07357792,104220.0,104210.0,1.06399573]
[1748748942366,0.07357792,104220.0,104210.0,1.07298857]
[1748748942547,0.07357792,104220.0,104210.0,1.06399573]
[1748748942765,0.06398293,104220.0,104210.0,1.06399573]
[1748748942975,0.06398293,104220.0,104210.0,1.09097426]
[1748748943184,0.06398293,104220.0,104210.0,1.07298857]
[1748748943408,0.06398293,104220.0,104210.0,1.06399573]
[1748748943609,0.05138943,104220.0,104210.0,1.06399573]
[1748748943751,0.06098433,104220.0,104210.0,1.06399573]
[1748748944146,0.06098433,104220.0,104210.0,0.7397493]
[1748748944362,0.06398293,104220.0,104210.0,1.06399573]
[1748748944591,0.06398293,104220.0,104210.0,1.0909772]
[1748748944792,0.06398293,104220.0,104210.0,1.07299153]
[1748748944995,0.06398293,104220.0,104210.0,1.0639987]
[1748748945613,0.06398293,104220.0,104210.0,1.08198454]
[1748748945819,0.06398293,104220.0,104210.0,1.0639987]
[1748748946154,0.06398293,104220.0,104210.0,1.07299162]
[1748748946358,0.06398293,104220.0,104210.0,1.0639987]
[1748748948150,0.06398293,104220.0,104210.0,1.07299161]
[1748748948382,0.06398293,104220.0,104210.0,1.0639987]
[1748748948559,0.06398293,104220.0,104210.0,1.08198453]
[1748748948982,0.06398293,104220.0,104210.0,1.0639987]
[1748748949867,0.06398293,104220.0,104210.0,1.07299162]
[1748748950764,0.06398293,104220.0,104210.0,1.09097747]
[1748748950940,0.06398293,104220.0,104210.0,1.08198443]
[1748748951171,0.06398293,104220.0,104210.0,1.07299162]
[1748748951362,0.06398293,104220.0,104210.0,1.09097713]
[1748748951573,0.06398293,104220.0,104210.0,1.07299162]
[1748748951949,0.06398293,104220.0,104210.0,1.08198437]
[1748748952941,0.06398293,104220.0,104210.0,1.10896284]
[1748748953162,0.04479295,104220.0,104210.0,1.08198437]
[1748748953365,0.0609835,104220.0,104210.0,1.09997002]
[1748748953563,0.05138879,104220.0,104210.0,1.09996992]
[1748748953804,0.0322,104220.0,104210.0,1.08198437]
[1748748954005,0.04179444,104220.0,104210.0,1.09097709]
[1748748954182,0.04179444,104220.0,104210.0,1.10896229]
[1748748954381,0.04179444,104220.0,104210.0,1.08198437]
[1748748954616,0.05138915,104220.0,104210.0,1.090977]
[1748748954820,0.05138915,104220.0,104210.0,1.08198437]
[1748748955017,0.05138906,104220.0,104210.0,1.09097709]
[1748748955655,0.05138906,104220.0,104210.0,1.08198437]
[1748748955799,0.05138906,104220.0,104210.0,1.09996981]
[1748748955999,0.05138906,104220.0,104210.0,1.10896253]
[1748748956205,0.05138906,104220.0,104210.0,1.09996981]
[1748748956428,0.05138906,104220.0,104210.0,1.11795525]
[1748748956630,0.05138906,104220.0,104210.0,1.09996981]
[1748748956832,0.05138906,104220.0,104210.0,1.11795525]
[1748748956994,0.05138906,104220.0,104210.0,1.09996981]
[1748748957575,0.06098377,104220.0,104210.0,1.09996981]
[1748748957981,0.06098377,104220.0,104210.0,1.10896253]
[1748748958183,0.06098377,104220.0,104210.0,1.12694797]
[1748748958310,0.06098377,104220.0,104210.0,1.10896253]
[1748748958512,0.06098377,104220.0,104210.0,1.12694797]
[1748748958777,0.06098377,104220.0,104210.0,1.13594069]
[1748748959037,0.07057867,104220.0,104210.0,1.12694797]
[1748748959238,0.07057867,104220.0,104210.0,1.10896253]
[1748748959421,0.07057867,104220.0,104210.0,1.13594069]
[1748748959558,0.07057867,104220.0,104210.0,1.11795525]
[1748748959783,0.07057867,104220.0,104210.0,1.10896253]
[1748748959985,0.07057867,104220.0,104210.0,1.12694797]
[1748748960192,0.07057867,104220.0,104210.0,1.10896253]
[1748748960605,0.07057867,104220.0,104210.0,1.12694797]
[1748748960822,0.07057867,104220.0,104210.0,1.14493341]
[1748748961024,0.07057867,104220.0,104210.0,1.12694797]
[1748748961589,0.07057867,104220.0,104210.0,1.14493341]
[1748748961906,0.07057867,104220.0,104210.0,1.12694797]
[1748748962089,0.05407867,104220.0,104210.0,1.12694797]
[1748748962478,0.03837867,104220.0,104210.0,1.12694797]
[1748748962690,0.02845101,104220.0,104210.0,1.14214797]
[1748748962886,0.02845101,104220.0,104210.0,1.16013341]
[1748748963097,0.02845101,104220.0,104210.0,1.15114069]
[1748748963271,0.02845101,104220.0,104210.0,1.14214797]
[1748748963469,0.02845101,104220.0,104210.0,1.15114069]
[1748748963669,0.02845101,104220.0,104210.0,1.14214797]
[1748748964634,0.02845101,104220.0,104210.0,1.15114147]
[1748748965063,0.02845101,104220.0,104210.0,1.13315603]
[1748748965263,0.02845101,104220.0,104210.0,1.14214875]
[1748748966037,0.02845101,104220.0,104210.0,1.15114147]
[1748748966185,0.02845101,104220.0,104210.0,1.13315603]
[1748748966383,0.02845101,104220.0,104210.0,1.15114147]
[1748748966591,0.02845101,104220.0,104210.0,1.13315603]
[1748748966863,0.02845101,104220.0,104210.0,1.14214875]
[1748748967075,0.02845101,104220.0,104210.0,1.13315603]
[1748748968215,0.038046,104220.0,104210.0,1.11795603]
[1748748969209,0.053446,104220.0,104210.0,1.11795603]
[1748748970005,0.053446,104220.0,104210.0,1.13594149]
[1748748970216,0.053446,104220.0,104210.0,1.11795603]
[1748748970416,0.053446,104220.0,104210.0,1.12694875]
[1748748970623,0.053446,104220.0,104210.0,1.11795603]
[1748748971214,0.053446,104220.0,104210.0,1.13594147]
[1748748971385,0.04385092,104220.0,104210.0,1.11795603]
[1748748971595,0.05344582,104220.0,104210.0,1.12694875]
[1748748971805,0.05344582,104220.0,104210.0,1.13594147]
[1748748972220,0.05344582,104220.0,104210.0,1.12473863]
[1748748973052,0.05344582,104220.0,104210.0,1.13373135]
[1748748973255,0.05344582,104220.0,104210.0,1.12473863]
[1748748973943,0.04385092,104220.0,104210.0,1.15171679]
[1748748974165,0.05344582,104220.0,104210.0,1.15171679]
[1748748974390,0.05509682,104220.0,104210.0,1.15171679]
[1748748974586,0.05509682,104220.0,104210.0,1.11574748]
[1748748974806,0.05509682,104220.0,104210.0,1.13373292]
[1748748975171,0.05509682,104220.0,104210.0,1.15171836]
[1748748975670,0.05509682,104220.0,104210.0,0.82747193]
[1748748975876,0.05509682,104220.0,104210.0,1.15171836]
[1748748976159,0.05509682,104220.0,104210.0,1.13373292]
[1748748976381,0.05509682,104220.0,104210.0,1.15171837]
[1748748976556,0.05509682,104220.0,104210.0,1.15171833]
[1748748976763,0.05509682,104220.0,104210.0,1.15171831]
[1748748977149,0.04550192,104220.0,104210.0,1.15171831]
[1748748977414,0.04550192,104220.0,104210.0,1.1517183]
[1748748977619,0.05509682,104220.0,104210.0,1.1517183]
[1748748978118,0.05509682,104220.0,104210.0,1.15171827]
[1748748978327,0.05509682,104220.0,104210.0,1.15171825]
[1748748978539,0.03969682,104220.0,104210.0,1.15171825]
[1748748978981,0.03969682,104220.0,104210.0,1.14272557]
[1748748979189,0.04929181,104220.0,104210.0,1.14272557]
[1748748979391,0.04929181,104220.0,104210.0,1.1247402]
[1748748979823,0.04929181,104220.0,104210.0,0.84636557]
[1748748980064,0.04929181,104220.0,104210.0,1.13357288]
[1748748980288,0.04929181,104220.0,104210.0,1.14256557]
[1748748980508,0.04929181,104220.0,104210.0,1.1245802]
[1748748981355,0.04929181,104220.0,104210.0,1.13357288]
[1748748981472,0.04929181,104220.0,104210.0,1.1245802]
[1748748982229,0.24152714,104220.0,104210.0,1.11438207]
[1748748982437,0.24152714,104220.0,104210.0,1.11498484]
[1748748983295,0.04003032,104220.0,104210.0,1.13357288]
[1748748983740,0.04003032,104220.0,104210.0,1.15155825]
[1748748984184,0.03043533,104220.0,104210.0,1.14256557]
[1748748984370,0.03043533,104220.0,104210.0,1.1245802]
[1748748984737,0.03043533,104220.0,104210.0,1.14256557]
[1748748984942,0.03043533,104220.0,104210.0,1.1245802]
[1748748985150,0.03043533,104220.0,104210.0,1.14256557]
[1748748985349,0.03043533,104220.0,104210.0,1.1245802]
[1748748985554,0.03043533,104220.0,104210.0,1.14256557]
[1748748985753,0.04302883,104220.0,104210.0,1.1245802]
[1748748986146,0.04302883,104220.0,104210.0,1.13357288]
[1748748986350,0.04302883,104220.0,104210.0,1.1245802]
[1748748986952,0.04302883,104220.0,104210.0,1.13357288]
[1748748987225,0.03343384,104220.0,104210.0,1.1245802]
[1748748988408,0.03343384,104220.0,104210.0,1.15155825]
[1748748988584,0.03343384,104220.0,104210.0,1.1245802]
[1748748988998,0.03343384,104220.0,104210.0,1.14256557]
[1748748989248,0.02383894,104220.0,104210.0,1.13357288]
[1748748989425,0.02383894,104220.0,104210.0,1.1245802]
[1748748989623,0.03043468,104220.0,104210.0,1.1245802]
[1748748989839,0.04002958,104220.0,104210.0,1.1245802]
[1748748990637,0.04302809,104220.0,104210.0,1.14256551]
[1748748990828,0.04002958,104220.0,104210.0,1.1245802]
[1748748991237,0.04002958,104220.0,104210.0,1.15155818]
[1748748991461,0.04002958,104220.0,104210.0,1.1245802]
[1748748991679,0.04002958,104220.0,104210.0,1.1695435]
[1748748991886,0.04002958,104220.0,104210.0,1.14256552]
[1748748993177,0.04002958,104220.0,104210.0,1.16055084]
[1748748993519,0.04002958,104220.0,104210.0,1.14256552]
[1748748993671,0.04002958,104220.0,104210.0,1.16055084]
[1748748993870,0.04002958,104220.0,104210.0,1.14256552]
[1748748994073,0.04002958,104220.0,104210.0,1.15155818]
[1748748994284,0.04002958,104220.0,104210.0,1.14256552]
[1748748994582,0.04002958,104220.0,104210.0,1.13357379]
[1748748994791,0.04002958,104220.0,104210.0,1.15155912]
[1748748995233,0.04002958,104220.0,104210.0,1.14256645]
[1748748995441,0.04302808,104220.0,104210.0,1.13357379]
[1748748995643,0.04302808,104220.0,104210.0,1.14256645]
[1748748995838,0.04302808,104220.0,104210.0,1.16954444]
[1748748996048,0.04302808,104220.0,104210.0,1.14256645]
[1748748996617,0.04302808,104220.0,104210.0,1.16055178]
[1748748996822,0.04302808,104220.0,104210.0,1.14256645]
[1748748997559,0.04302808,104220.0,104210.0,1.15155911]
[1748748997762,0.04302808,104220.0,104210.0,1.14256645]
[1748748997967,0.04302808,104220.0,104210.0,1.16954444]
[1748748998164,0.04302808,104220.0,104210.0,1.16055178]
[1748748998706,0.04302808,104220.0,104210.0,1.1785371]
[1748748998869,0.04302808,104220.0,104210.0,1.16954444]
[1748748999076,0.04302808,104220.0,104210.0,1.16055178]
[1748748999723,0.04302808,104220.0,104210.0,1.1785371]
[1748749000089,0.04302808,104220.0,104210.0,1.16055178]
[1748749000266,0.04302808,104220.0,104210.0,1.1785371]
[1748749000481,0.04302808,104220.0,104210.0,1.16954444]
[1748749000697,0.04302808,104220.0,104210.0,1.1785371]
[1748749000896,0.04302808,104220.0,104210.0,1.16055178]
[1748749001243,0.04302808,104220.0,104210.0,1.1785371]
[1748749001440,0.04302808,104220.0,104210.0,1.16055178]
[1748749001646,0.02383847,104220.0,104210.0,1.18752976]
[1748749001853,0.03343337,104220.0,104210.0,1.16055178]
[1748749002264,0.03343328,104220.0,104210.0,1.16055178]
[1748749002462,0.03343328,104220.0,104210.0,1.16954444]
[1748749002686,0.03343328,104220.0,104210.0,1.16055178]
[1748749003295,0.03343328,104220.0,104210.0,1.17853709]
[1748749003522,0.03343328,104220.0,104210.0,1.16954443]
[1748749003731,0.03343328,104220.0,104210.0,1.16055178]
[1748749003930,0.03343328,104220.0,104210.0,1.16954444]
[1748749004456,0.03343328,104220.0,104210.0,1.18752976]
[1748749004671,0.03343328,104220.0,104210.0,1.15156136]
[1748749004887,0.03343328,104220.0,104210.0,1.17853934]
[1748749005303,0.03343328,104220.0,104210.0,1.16055402]
[1748749005517,0.02083997,104220.0,104210.0,1.15156136]
[1748749005724,0.03043478,104220.0,104210.0,1.16954668]
[1748749005930,0.03043478,104220.0,104210.0,1.17853934]
[1748749006366,0.03043478,104220.0,104210.0,1.16055402]
[1748749006573,0.02083997,104220.0,104210.0,1.15156136]
[1748749006808,0.03043468,104220.0,104210.0,1.15156136]
[1748749006990,0.03043468,104220.0,104210.0,1.17853944]
[1748749007190,0.03043468,104220.0,104210.0,1.16055405]
[1748749007398,0.03043468,104220.0,104210.0,1.16954675]
[1748749007838,0.03043468,104220.0,104210.0,1.17853941]
[1748749008039,0.03043468,104220.0,104210.0,1.15156136]
[1748749008582,0.03043468,104220.0,104210.0,1.16954676]
[1748749008786,0.03043468,104220.0,104210.0,1.16055406]
[1748749008989,0.03043468,104220.0,104210.0,1.15156136]
[1748749009793,0.04302807,104220.0,104210.0,1.15116136]
[1748749009995,0.04302798,104220.0,104210.0,1.15116136]
[1748749010413,0.04302798,104220.0,104210.0,0.82691493]
[1748749010627,0.04302798,104220.0,104210.0,1.15116136]
[1748749011262,0.04302798,104220.0,104210.0,0.82691493]
[1748749011462,0.04302798,104220.0,104210.0,1.15116136]
[1748749013053,0.04302798,104220.0,104210.0,1.16015407]
[1748749013253,0.04302798,104220.0,104210.0,1.15116136]
[1748749013671,0.03343317,104220.0,104210.0,1.16914679]
[1748749013847,0.04002958,104220.0,104210.0,1.15116136]
[1748749014277,0.04002958,104220.0,104210.0,1.16914679]
[1748749014623,0.03990649,104220.0,104210.0,1.15116136]
[1748749014825,0.03990649,104220.0,104210.0,1.16914679]
[1748749015032,0.03031159,104220.0,104210.0,1.1781395]
[1748749015240,0.03990649,104220.0,104210.0,1.16914679]
[1748749015410,0.03990649,104220.0,104210.0,1.18713222]
[1748749015611,0.03990649,104220.0,104210.0,1.16914679]
[1748749016788,0.03990649,104220.0,104210.0,1.18713222]
[1748749017149,0.03990649,104220.0,104210.0,1.16914679]
[1748749017559,0.03990649,104220.0,104210.0,1.1781395]
[1748749017901,0.03990649,104220.0,104210.0,1.16914679]
[1748749018540,0.03990649,104220.0,104210.0,1.1781395]
[1748749018754,0.03990649,104220.0,104210.0,1.16914679]
[1748749018961,0.03990649,104220.0,104210.0,1.1781395]
[1748749019157,0.01124535,104220.0,104210.0,1.16914679]
[1748749019636,0.0304345,104220.0,104210.0,1.16914679]
[1748749020235,0.0304345,104220.0,104210.0,1.16236419]
[1748749020468,0.0304345,104220.0,104210.0,1.1713568]
[1748749020673,0.0304345,104220.0,104210.0,1.16236419]
[1748749021232,0.0400294,104220.0,104210.0,1.16236419]
[1748749021476,0.04302788,104220.0,104210.0,1.1713568]
[1748749021676,0.04302788,104220.0,104210.0,1.16236419]
[1748749021880,0.04302788,104220.0,104210.0,0.83811776]
[1748749022086,0.03343298,104220.0,104210.0,1.16236419]
[1748749022293,0.05262269,104220.0,104210.0,1.18926202]
[1748749022525,0.05262269,104220.0,104210.0,1.16228419]
[1748749022737,0.05262269,104220.0,104210.0,1.17127679]
[1748749022933,0.05262269,104220.0,104210.0,1.1802694]
[1748749023137,0.05262269,104220.0,104210.0,1.16228419]
[1748749024198,0.04302779,104220.0,104210.0,1.16228419]
[1748749024338,0.04302779,104220.0,104210.0,1.17127679]
[1748749024538,0.04302779,104220.0,104210.0,1.18926199]
[1748749025093,0.04302779,104220.0,104210.0,1.18925928]
[1748749025245,0.04302779,104220.0,104210.0,1.18925386]
[1748749025464,0.04302788,104220.0,104210.0,1.18925386]
[1748749026116,0.04002931,104220.0,104210.0,1.18925386]
[1748749026456,0.04002931,104220.0,104210.0,1.16228419]
[1748749027165,0.04002931,104220.0,104210.0,1.18026389]
[1748749027384,0.04002931,104220.0,104210.0,1.16228419]
[1748749027794,0.04002931,104220.0,104210.0,1.17127404]
[1748749028189,0.04002931,104220.0,104210.0,1.16228419]
[1748749028594,0.02083979,104220.0,104210.0,1.26712834]
[1748749028844,0.0304345,104220.0,104210.0,1.25813849]
[1748749029229,0.0304345,104220.0,104210.0,1.28510804]
[1748749029853,0.02083979,104220.0,104210.0,1.26712834]
[1748749030075,0.03043441,104220.0,104210.0,1.27611874]
[1748749030466,0.03043441,104220.0,104210.0,1.25813849]
[1748749030700,0.03043441,104220.0,104210.0,1.28510886]
[1748749030904,0.04002922,104220.0,104210.0,1.28510886]
[1748749031109,0.03043441,104220.0,104210.0,1.28510886]
[1748749031675,0.03043441,104220.0,104210.0,1.26712888]
[1748749031912,0.02083979,104220.0,104210.0,1.28510966]
[1748749032183,0.03043441,104220.0,104210.0,1.28510966]
[1748749033205,0.03043441,104220.0,104210.0,1.28511007]
[1748749033453,0.03043441,104220.0,104210.0,1.28511027]
[1748749033678,0.001651,104220.0,104210.0,1.6093567]
[1748749033886,0.001651,104220.0,104210.0,1.60935586]
[1748749034090,0.001651,104220.0,104210.0,1.28510943]
[1748749034297,0.00153492,104220.0,104210.0,1.28509795]
[1748749034538,0.00153492,104220.0,104210.0,1.28509179]
[1748749034761,0.01723492,104220.0,104210.0,1.25813549]
[1748749034977,0.01723492,104220.0,104210.0,1.26113166]
[1748749035176,0.01723492,104220.0,104210.0,1.23418219]
[1748749035348,0.03223492,104220.0,104210.0,1.25214723]
[1748749035544,0.03223492,104220.0,104210.0,1.23718219]
[1748749035937,0.03223492,104220.0,104210.0,1.26412975]
[1748749036261,0.01723492,104220.0,104210.0,1.26412827]
[1748749036477,0.01723492,104220.0,104210.0,1.26412747]
[1748749036703,0.00153492,104220.0,104210.0,1.26412747]
[1748749036927,0.00153492,104220.0,104210.0,1.28347646]
[1748749037165,0.00153492,104220.0,104210.0,1.25653118]
[1748749037640,0.00153492,104220.0,104210.0,1.28347631]
[1748749037934,0.00153492,104220.0,104210.0,1.27449318]
[1748749038152,0.00153492,104220.0,104210.0,1.28347418]
[1748749038373,0.00153492,104220.0,104210.0,1.26551218]
[1748749038791,0.00153492,104220.0,104210.0,1.29245518]
[1748749039519,0.00153492,104220.0,104210.0,1.29245629]
[1748749039736,0.00153492,104220.0,104210.0,1.29245537]
[1748749039898,0.00153492,104220.0,104210.0,1.28347431]
[1748749040049,0.00153492,104220.0,104210.0,1.27449324]
[1748749040245,0.00153492,104220.0,104210.0,1.26551218]
[1748749040712,0.00153492,104220.0,104210.0,1.27957235]
[1748749040907,0.00153492,104220.0,104210.0,1.2705913]
[1748749041114,0.00153492,104220.0,104210.0,1.27957234]
[1748749041315,0.00153492,104220.0,104210.0,1.26161026]
[1748749041541,0.00153492,104220.0,104210.0,1.27957234]
[1748749042061,0.01733492,104220.0,104210.0,1.26161026]
[1748749042679,0.03253492,104220.0,104210.0,1.26161026]
[1748749042892,0.03253492,104220.0,104210.0,1.28855338]
[1748749043699,0.03253492,104220.0,104210.0,1.27059115]
[1748749043903,0.03253492,104220.0,104210.0,1.28855293]
[1748749044254,0.03253492,104220.0,104210.0,1.62855293]
[1748749044467,0.03253492,104220.0,104210.0,1.9712112]
[1748749044685,0.03253492,104220.0,104210.0,1.95323306]
[1748749044884,0.03253492,104220.0,104210.0,1.9532329]
[1748749045105,0.03253492,104220.0,104210.0,1.95323289]
[1748749045328,0.03253492,104220.0,104210.0,1.95323264]
[1748749045954,0.03253492,104220.0,104210.0,1.92629635]
[1748749046161,0.03253492,104220.0,104210.0,1.94425388]
[1748749046357,0.03253492,104220.0,104210.0,1.93527511]
[1748749046564,0.03253492,104220.0,104210.0,1.92629635]
[1748749046821,0.03253492,104220.0,104210.0,1.94425388]
[1748749046958,0.03253492,104220.0,104210.0,1.92629635]
[1748749047572,0.01733492,104220.0,104210.0,1.27780349]
[1748749047793,0.01733492,104220.0,104210.0,1.92629635]
[1748749048004,0.00153492,104220.0,104210.0,1.92629635]
[1748749048216,0.00153492,104220.0,104210.0,1.93527511]
[1748749048449,0.00153492,104220.0,104210.0,1.92629635]
[1748749049150,0.00153492,104220.0,104210.0,1.93527371]
[1748749049353,0.00153492,104220.0,104210.0,1.92629635]
[1748749049528,0.00153492,104220.0,104210.0,1.93527371]
[1748749049898,0.00153492,104220.0,104210.0,1.92629635]
[1748749050108,0.00153492,104220.0,104210.0,1.93527371]
[1748749050314,0.00153492,104220.0,104210.0,1.92629635]
[1748749050871,0.00153492,104220.0,104210.0,1.93527369]
[1748749051017,0.00153492,104220.0,104210.0,1.92629635]
[1748749052063,0.00153492,104220.0,104210.0,1.93527369]
[1748749052269,0.01653492,104220.0,104210.0,1.92629635]
[1748749052897,0.03273492,104220.0,104210.0,1.92629635]
[1748749053275,0.03273492,104220.0,104210.0,1.61102726]
[1748749053450,0.03273492,104220.0,104210.0,1.60204992]
[1748749053851,0.03273492,104220.0,104210.0,1.61078736]
[1748749054082,0.03273492,104220.0,104210.0,1.61078734]
[1748749054757,0.03273492,104220.0,104210.0,1.60168992]
[1748749054948,0.03273492,104220.0,104210.0,1.61066797]
[1748749056573,0.03273492,104220.0,104210.0,1.60164992]
[1748749057880,0.01653492,104220.0,104210.0,1.60164992]
[1748749058466,0.00153492,104220.0,104210.0,1.60164992]
[1748749059100,0.00153492,104220.0,104210.0,1.61062777]
[1748749059296,0.00153492,104220.0,104210.0,1.60164992]
[1748749060601,0.00153492,104220.0,104210.0,1.27740349]
[1748749060808,0.00153492,104220.0,104210.0,1.61062861]
[1748749060948,0.00153492,104220.0,104210.0,1.60164992]
[1748749061559,0.00153492,104220.0,104210.0,1.61063011]
[1748749061963,0.00153492,104220.0,104210.0,1.60164992]
[1748749062164,0.00153492,104220.0,104210.0,1.61063026]
[1748749062364,0.00153492,104220.0,104210.0,1.60164992]
[1748749062698,0.00153492,104220.0,104210.0,1.61063026]
[1748749062901,0.00153492,104220.0,104210.0,1.93487669]
[1748749063104,0.00153492,104220.0,104210.0,1.96529982]
[1748749063309,0.00153492,104220.0,104210.0,1.93487965]
[1748749063859,0.00153492,104220.0,104210.0,1.93488021]
[1748749064064,0.00153492,104220.0,104210.0,1.92589635]
[1748749064511,0.00153492,104220.0,104210.0,1.93488051]
[1748749064938,0.22064507,104240.0,104220.0,0.55109089]
[1748749065179,0.22069385,104240.0,104230.0,0.90762406]
[1748749065314,0.22069385,104240.0,104230.0,0.91660822]
[1748749066020,0.22069385,104240.0,104230.0,0.90762406]
[1748749066219,0.22069385,104240.0,104230.0,0.94539088]
[1748749066406,0.22069385,104240.0,104230.0,0.93640572]
[1748749067034,0.02882823,104240.0,104230.0,0.94539088]
[1748749067267,0.0384201,104240.0,104230.0,0.94599924]
[1748749068757,0.04801325,104240.0,104230.0,0.94599924]
[1748749070215,0.04801325,104240.0,104230.0,0.95498578]
[1748749070417,0.04801325,104240.0,104230.0,0.94599924]
[1748749070714,0.04801325,104240.0,104230.0,0.95498578]
[1748749070881,0.04801325,104240.0,104230.0,0.94599924]
[1748749071713,0.04801325,104240.0,104230.0,0.95498578]
[1748749071928,0.04801325,104240.0,104230.0,0.96397232]
[1748749072134,0.04801325,104240.0,104230.0,0.95498578]
[1748749072345,0.0384201,104240.0,104230.0,0.95498578]
[1748749072544,0.0384201,104240.0,104230.0,0.96397232]
[1748749072771,0.0384201,104240.0,104230.0,0.95498578]
[1748749073736,0.0384201,104240.0,104230.0,0.96397475]
[1748749073909,0.0384201,104240.0,104230.0,0.97071648]
[1748749074110,0.0384201,104240.0,104230.0,0.96397475]
[1748749074345,0.0384201,104240.0,104230.0,0.95498578]
[1748749075854,0.0384201,104240.0,104230.0,1.06195606]
[1748749076102,0.0384201,104240.0,104230.0,1.04622578]
[1748749076657,0.0384201,104240.0,104230.0,1.05296733]
[1748749076858,0.0384201,104240.0,104230.0,1.04622578]
[1748749077271,0.0384201,104240.0,104230.0,1.05521451]
[1748749077787,0.0384201,104240.0,104230.0,1.04622578]
[1748749077995,0.0384201,104240.0,104230.0,1.05521451]
[1748749078255,0.0384201,104240.0,104230.0,1.06420324]
[1748749078462,0.0384201,104240.0,104230.0,1.05521451]
[1748749079217,0.0384201,104240.0,104230.0,1.06420522]
[1748749079469,0.0384201,104240.0,104230.0,0.97296522]
[1748749079816,0.0384201,104240.0,104230.0,0.96397451]
[1748749080409,0.0384201,104240.0,104230.0,0.97296522]
[1748749080850,0.0384201,104240.0,104230.0,0.96397451]
[1748749081678,0.0384201,104240.0,104230.0,0.97296522]
[1748749082739,0.0384201,104240.0,104230.0,0.98195591]
[1748749083138,0.0384201,104240.0,104230.0,0.97296522]
[1748749083383,0.0384201,104240.0,104230.0,0.98195349]
[1748749083582,0.0384201,104240.0,104230.0,0.97296522]
[1748749084041,0.02882704,104240.0,104230.0,0.9819535]
[1748749084219,0.02882704,104240.0,104230.0,0.99993006]
[1748749084418,0.02882704,104240.0,104230.0,0.9909418]
[1748749084602,0.0384201,104240.0,104230.0,0.97296522]
[1748749084796,0.02882704,104240.0,104230.0,0.97296522]
[1748749085596,0.02882704,104240.0,104230.0,0.99094161]
[1748749085800,0.02882704,104240.0,104230.0,0.97296522]
[1748749086007,0.02882704,104240.0,104230.0,0.98195304]
[1748749086219,0.04402704,104240.0,104230.0,0.98195305]
[1748749086416,0.04402704,104240.0,104230.0,0.97296522]
[1748749087026,0.04402704,104240.0,104230.0,0.99094088]
[1748749087227,0.05972704,104240.0,104230.0,0.97296522]
[1748749087426,0.05972704,104240.0,104230.0,0.99094088]
[1748749087639,0.05972704,104240.0,104230.0,0.97296522]
[1748749088243,0.0693201,104240.0,104230.0,0.97296522]
[1748749088647,0.0693201,104240.0,104230.0,0.98179305]
[1748749088861,0.0693201,104240.0,104230.0,0.99078089]
[1748749089238,0.04054129,104240.0,104230.0,0.97280522]
[1748749089446,0.05013398,104240.0,104230.0,0.97280522]
[1748749089795,0.05972685,104240.0,104230.0,0.99078085]
[1748749089996,0.05013398,104240.0,104230.0,0.97280522]
[1748749090187,0.05972685,104240.0,104230.0,0.97280522]
[1748749090391,0.05972685,104240.0,104230.0,0.99078085]
[1748749090604,0.05972685,104240.0,104230.0,0.97280522]
[1748749090798,0.05972685,104240.0,104230.0,0.99976865]
[1748749091013,0.05972685,104240.0,104230.0,0.99078084]
[1748749091238,0.04402685,104240.0,104230.0,1.09991647]
[1748749091446,0.04402685,104240.0,104230.0,1.10890428]
[1748749091646,0.02882685,104240.0,104230.0,1.09092865]